[Event "DVM U12 2024"]
[Site "Heidelberg"]
[Date "2024.12.28"]
[Round "3"]
[White "Birkoben, Georgi"]
[Black "Xanthopoulos, Panagiotis"]
[Result "0-1"]
[ECO "C56"]
[WhiteElo "1062"]
[BlackElo "1104"]
[Annotator "NA"]
[PlyCount "70"]
[EventDate "2024.12.23"]
[EventType "team-tourn"]
[EventRounds "7"]
[EventCountry "GER"]
[SourceTitle "playchess.com"]
[Source "ChessBase"]
[SourceQuality "1"]
[TimeControl "40/5400+30:1800+30"]

1. e4 {[%emt 0:00:01]} e5 {[%emt 0:00:08]} 2. Nf3 {[%emt 0:00:05]} Nc6 {[%emt 0:00:11]} 3. d4 {[%emt 0:00:10]} exd4 {[%emt 0:00:21]} 4. Bc4 {[%emt 0:00:26]} Nf6 {[%emt 0:00:25]} 5. O-O {[%emt 0:00:26]} Bc5 {[%emt 0:00:35]} 6. c3 {[%emt 0:01:06]} Nxe4 {[%emt 0:01:10]} 7. Re1 {[%emt 0:00:55]} d5 {[%emt 0:00:10]} 8. Bb5 {[%emt 0:00:54]} dxc3 {[%emt 0:03:20]} 9. Nxc3 {[%emt 0:01:58]} Bxf2+ {[%emt 0:02:22]} 10. Kh1 {[%emt 0:01:12]} Bxe1 {[%emt 0:01:12]} 11. Qxe1 {[%emt 0:00:23]} O-O {[%emt 0:00:49]} 12. Bxc6 {[%emt 0:01:17]} bxc6 {[%emt 0:00:18]} 13. Bf4 {[%emt 0:03:29]} Re8 {[%emt 0:01:38]} 14. Nxe4 {[%emt 0:05:56]} Rxe4 {[%emt 0:01:41]} 15. Qg3 {[%emt 0:01:34]} Ba6 {[%emt 0:02:14]} 16. Bh6 {[%emt 0:05:00]} Qf6 {[%emt 0:03:36]} 17. Bd2 {[%emt 0:06:42]} Qxb2 {[%emt 0:01:24]} 18. Rc1 {[%emt 0:04:31]} Rae8 {[%emt 0:02:01]} 19. Rxc6 {[%emt 0:04:54]} Qxd2 {[%emt 0:00:55]} 20. h3 {[%emt 0:05:22]} Qf4 {[%emt 0:01:26]} 21. Qxf4 {[%emt 0:02:54]} Rxf4 {[%emt 0:00:10]} 22. Rxa6 {[%emt 0:00:12]} d4 {[%emt 0:00:08]} 23. Ra4 {[%emt 0:00:23]} c5 {[%emt 0:00:58]} 24. Rxa7 {[%emt 0:04:24]} Rd8 {[%emt 0:01:50]} 25. Ra4 {[%emt 0:01:04]} Rxf3 {[%emt 0:00:50]} 26. gxf3 {[%emt 0:06:38]} d3 {[%emt 0:00:12]} 27. Re4 {[%emt 0:01:59]} d2 {[%emt 0:00:31]} 28. Kh2 {[%emt 0:00:57]} d1=Q {[%emt 0:00:10]} 29. Kg3 {[%emt 0:00:06]} Qg1+ {[%emt 0:00:06]} 30. Kf4 {[%emt 0:00:09]} g5+ {[%emt 0:00:24]} 31. Kf5 {[%emt 0:00:09]} Rd5+ {[%emt 0:00:13]} 32. Re5 {[%emt 0:00:20]} Qb1+ {[%emt 0:00:15]} 33. Kf6 {[%emt 0:00:34]} Qg6+ {[%emt 0:00:09]} 34. Ke7 {[%emt 0:00:34]} Qd6+ {[%emt 0:00:09]} 35. Ke8 {[%emt 0:00:19]} Qd7# {[%emt 0:00:41]} 0-1

[Event "DVM U12 2024"]
[Site "Heidelberg"]
[Date "2024.12.28"]
[Round "3"]
[White "Meller, Nils"]
[Black "Libert, Nick"]
[Result "0-1"]
[ECO "D02"]
[WhiteElo "1024"]
[BlackElo "1548"]
[Annotator "NA"]
[PlyCount "64"]
[EventDate "2024.12.23"]
[EventType "team-tourn"]
[EventRounds "7"]
[EventCountry "GER"]
[SourceTitle "playchess.com"]
[Source "ChessBase"]
[SourceQuality "1"]
[TimeControl "40/5400+30:1800+30"]

1. d4 {[%emt 0:00:09]} d5 {[%emt 0:00:03]} 2. Bf4 {[%emt 0:00:11]} Nf6 {[%emt 0:00:04]} 3. e3 {[%emt 0:00:19]} Bf5 {[%emt 0:00:16]} 4. Nf3 {[%emt 0:00:29]} e6 {[%emt 0:00:13]} 5. Be2 {[%emt 0:00:49]} c5 {[%emt 0:00:30]} 6. c3 {[%emt 0:00:06]} Nc6 {[%emt 0:00:17]} 7. h3 {[%emt 0:00:44]} h6 {[%emt 0:00:30]} 8. O-O {[%emt 0:01:23]} g5 {[%emt 0:00:24]} 9. Be5 {[%emt 0:10:16]} Nxe5 {[%emt 0:00:21]} 10. Nxe5 {[%emt 0:00:13]} a6 {[%emt 0:00:31]} 11. a4 {[%emt 0:04:40]} Bd6 {[%emt 0:00:21]} 12. Ng4 {[%emt 0:03:49]} h5 {[%emt 0:01:45]} 13. Nxf6+ {[%emt 0:02:26]} Qxf6 {[%emt 0:00:04]} 14. Bxh5 {[%emt 0:01:03]} Qh6 {[%emt 0:00:03]} 15. Bg4 {[%emt 0:13:52]} Bxg4 {[%emt 0:00:12]} 16. Qxg4 {[%emt 0:00:11]} f5 {[%emt 0:00:01]} 17. Qe2 {[%emt 0:01:21]} g4 {[%emt 0:00:02]} 18. f4 {[%emt 0:02:49]} gxh3 {[%emt 0:00:16]} 19. gxh3 {[%emt 0:00:48]} Qxh3 {[%emt 0:00:06]} 20. Qg2 {[%emt 0:00:40]} Qxe3+ {[%emt 0:00:10]} 21. Rf2 {[%emt 0:00:56]} O-O-O {[%emt 0:00:22]} 22. Kf1 {[%emt 0:01:14]} Rdg8 {[%emt 0:01:17]} 23. Qf3 {[%emt 0:01:50]} Qc1+ {[%emt 0:00:48]} 24. Ke2 {[%emt 0:01:02]} Qxb2+ {[%emt 0:00:05]} 25. Ke3 {[%emt 0:01:16]} Qxa1 {[%emt 0:00:14]} 26. Qd1 {[%emt 0:01:14]} Rg3+ {[%emt 0:00:13]} 27. Ke2 {[%emt 0:00:46]} Qb2+ {[%emt 0:00:32]} 28. Nd2 {[%emt 0:00:38]} Qxc3 {[%emt 0:00:10]} 29. Rf3 {[%emt 0:01:23]} Rg2+ {[%emt 0:01:30]} 30. Kf1 {[%emt 0:00:35]} Qxd2 {[%emt 0:00:00]} 31. Qxd2 {[%emt 0:00:47]} Rxd2 {[%emt 0:00:00]} 32. Ke1 {[%emt 0:00:43]} Ra2 {[%emt 0:00:00]} 0-1

[Event "DVM U12 2024"]
[Site "Heidelberg"]
[Date "2024.12.28"]
[Round "3"]
[White "Ünal, Malik Mehmet"]
[Black "Hübler, Leonas"]
[Result "0-1"]
[ECO "C50"]
[WhiteElo "831"]
[BlackElo "920"]
[Annotator "NA"]
[PlyCount "40"]
[EventDate "2024.12.23"]
[EventType "team-tourn"]
[EventRounds "7"]
[EventCountry "GER"]
[SourceTitle "playchess.com"]
[Source "ChessBase"]
[SourceQuality "1"]
[TimeControl "40/5400+30:1800+30"]

1. e4 {[%emt 0:00:03]} e5 {[%emt 0:00:06]} 2. Nf3 {[%emt 0:00:49]} Nc6 {[%emt 0:00:36]} 3. Bc4 {[%emt 0:00:23]} Bc5 {[%emt 0:00:12]} 4. d3 {[%emt 0:00:24]} Nf6 {[%emt 0:00:23]} 5. O-O {[%emt 0:00:18]} d6 {[%emt 0:00:22]} 6. Nc3 {[%emt 0:01:09]} Bg4 {[%emt 0:00:37]} 7. h3 {[%emt 0:00:36]} Bh5 {[%emt 0:00:10]} 8. Bg5 {[%emt 0:01:18]} h6 {[%emt 0:00:29]} 9. Bh4 {[%emt 0:00:14]} Nd4 {[%emt 0:00:38]} 10. g4 {[%emt 0:02:36]} Nxf3+ {[%emt 0:01:02]} 11. Qxf3 {[%emt 0:00:38]} Bg6 {[%emt 0:00:13]} 12. Nd5 {[%emt 0:00:18]} a6 {[%emt 0:05:18]} 13. Nxf6+ {[%emt 0:01:05]} gxf6 {[%emt 0:00:25]} 14. Bxf6 {[%emt 0:00:31]} Qd7 {[%emt 0:02:32]} 15. Bxh8 {[%emt 0:00:18]} O-O-O {[%emt 0:00:55]} 16. Bf6 {[%emt 0:01:44]} Rg8 {[%emt 0:00:32]} 17. h4 {[%emt 0:02:28]} Bh5 {[%emt 0:00:58]} 18. g5 {[%emt 0:04:03]} Bxf3 {[%emt 0:00:14]} 19. Kh2 {[%emt 0:02:41]} Qg4 {[%emt 0:00:47]} 20. Rg1 {[%emt 0:02:47]} Qxh4# {[%emt 0:00:12]} 0-1